bitfinex-derivatives/quotes_BNBF0:USTF0_20250524
["timestamp","ask_amount","ask_price","bid_price","bid_amount"]
[1748126934456,1.71731215,669.78,669.49,1.104]
[1748126934658,2.72840469,669.77,669.49,1.104]
[1748126934953,1.71731215,669.76,669.49,1.104]
[1748126935154,1.71731215,669.75,669.49,1.104]
[1748126935354,2.72840469,669.74,669.49,1.104]
[1748126935559,1.71731215,669.73,669.6,0.47560778]
[1748126935759,2.72840469,669.72,669.6,0.47560778]
[1748126935959,1.71731215,669.71,669.6,0.47560778]
[1748126936159,1.71731215,669.7,669.6,0.47560778]
[1748126936360,2.72840469,669.69,669.6,0.47560778]
[1748126936555,1.16394957,669.68,669.6,0.47560778]
[1748126936764,2.17569422,669.67,669.6,0.47560778]
[1748126936961,2.17569422,669.66,669.6,0.47560778]
[1748126937162,1.16460168,669.65,669.6,0.47560778]
[1748126937362,1.01109254,669.66,669.61,0.47560778]
[1748126937363,1.16460168,669.64,669.61,0.47560778]
[1748126937563,2.17569422,669.63,669.61,0.47560778]
[1748126937762,1.16460168,669.62,669.61,0.47560778]
[1748126938364,2.17569422,669.62,669.61,0.47560778]
[1748126940363,2.17613779,669.62,669.61,0.47560778]
[1748126941565,2.17613236,669.62,669.61,0.47560778]
[1748126943362,1.01109254,669.62,669.57,0.47560778]
[1748126943769,1.01109254,669.61,669.57,0.47560778]
[1748126944266,1.01109254,669.6,669.57,0.47560778]
[1748126944869,1.01109254,669.59,669.57,0.47560778]
[1748126945472,1.01109254,669.58,669.57,0.47560778]
[1748126946375,1.01109254,669.58,669.49,1.104]
[1748126946673,1.01109254,669.57,669.49,1.104]
[1748126946974,1.01109254,669.56,669.49,1.104]
[1748126947377,1.46941097,670.0,669.49,1.104]
[1748126947578,1.65861894,669.99,669.49,1.104]
[1748126947779,2.66710906,669.98,669.49,1.104]
[1748126947978,1.65861894,669.97,669.49,1.104]
[1748126948174,1.65861894,669.96,669.49,1.104]
[1748126948374,1.65861894,669.95,669.49,1.104]
[1748126948678,1.46941097,669.99,669.49,1.104]
[1748126948679,2.66710906,669.94,669.49,1.104]
[1748126948878,2.66710906,669.93,669.49,1.104]
[1748126949078,1.65878792,669.92,669.49,1.104]
[1748126949279,1.65878792,669.91,669.49,1.104]
[1748126949576,2.66727804,669.9,669.51,0.47535609]
[1748126949773,1.65878792,669.89,669.51,0.47535609]
[1748126949974,1.65878792,669.88,669.51,0.47535609]
[1748126950175,1.65878792,669.87,669.51,0.47535609]
[1748126950375,1.65878792,669.86,669.51,0.47535609]
[1748126950678,2.66727804,669.85,669.51,0.47535609]
[1748126950880,2.66731414,669.84,669.51,0.47535609]
[1748126951080,1.65882402,669.83,669.53,0.47535609]
[1748126951280,1.65882402,669.82,669.53,0.47535609]
[1748126951481,2.66731414,669.81,669.53,0.47535609]
[1748126951682,1.65882402,669.8,669.53,0.47535609]
[1748126951982,2.66731414,669.79,669.53,0.47535609]
[1748126952180,1.65882402,669.78,669.53,0.47535609]
[1748126952477,2.66731414,669.77,669.53,0.47535609]
[1748126952677,0.55391418,669.76,669.53,0.47535609]
[1748126952879,1.65942114,669.75,669.53,0.47535609]
[1748126953078,1.65942114,669.74,669.53,0.47535609]
[1748126953280,1.65942114,669.73,669.52,0.47535609]
[1748126953481,1.65942114,669.72,669.52,0.47535609]
[1748126953676,1.65942114,669.71,669.52,0.47535609]
[1748126953880,2.66791126,669.7,669.52,0.47535609]
[1748126954181,2.66791126,669.69,669.52,0.47535609]
[1748126954383,1.65942114,669.68,669.52,0.47535609]
[1748126954583,1.65951925,669.67,669.52,0.47535609]
[1748126954782,2.66800937,669.66,669.52,0.47535609]
[1748126954984,1.65951925,669.65,669.49,1.104]
[1748126955183,1.10558299,669.64,669.49,1.104]
[1748126955387,1.00849012,669.64,669.49,1.104]
[1748126955886,1.00849012,669.63,669.49,1.104]
[1748126956485,1.00849012,669.62,669.49,1.104]
[1748126956685,1.00849012,669.61,669.49,1.104]
[1748126957282,1.00849012,669.6,669.49,1.104]
[1748126957687,1.00849012,669.59,669.49,1.104]
[1748126958090,1.00849012,669.58,669.49,1.104]
[1748126958384,1.00849012,669.57,669.49,1.104]
[1748126959290,1.00849012,669.56,669.49,1.104]
[1748126959691,1.00849012,669.55,669.49,1.104]
[1748126960191,1.00849012,669.54,669.49,1.104]
[1748126960690,1.00849012,669.53,669.49,1.104]
[1748126961192,1.46941097,670.01,669.49,1.104]
[1748126961387,1.65973878,670.0,669.49,1.104]
[1748126961587,1.65973878,669.99,669.49,1.104]
[1748126961790,1.65973878,669.98,669.49,1.104]
[1748126961986,1.65973878,669.97,669.49,1.104]
[1748126962187,1.65973878,669.96,669.49,1.104]
[1748126962388,1.65973878,669.95,669.49,1.104]
[1748126962588,2.66929809,669.94,669.49,1.104]
[1748126962786,2.66929809,669.93,669.49,1.104]
[1748126962988,1.65973878,669.92,669.49,1.104]
[1748126963186,1.65973878,669.91,669.49,1.104]
[1748126963386,1.65973878,669.9,669.49,1.104]
[1748126963689,2.66929809,669.89,669.49,1.104]
[1748126963888,1.72214111,669.88,669.49,1.104]
[1748126964086,1.72214111,669.87,669.49,1.104]
[1748126964291,2.73170042,669.86,669.49,1.104]
[1748126964490,1.72214111,669.85,669.49,1.104]
[1748126964694,1.72214111,669.84,669.49,1.104]
[1748126964890,1.72214111,669.83,669.49,1.104]
[1748126965094,1.72214111,669.82,669.49,1.104]
[1748126965395,2.73170042,669.81,669.49,1.104]
[1748126965595,1.72214111,669.8,669.49,1.104]
[1748126965889,2.73169615,669.79,669.49,1.104]
[1748126966095,2.73169615,669.78,669.49,1.104]
[1748126966297,1.72213684,669.77,669.49,1.104]
[1748126966496,2.73169615,669.76,669.49,1.104]
[1748126966798,1.72213684,669.75,669.49,1.104]
[1748126966993,1.72213684,669.74,669.49,1.104]
[1748126967195,2.73169615,669.73,669.49,1.104]
[1748126967394,1.72213684,669.72,669.49,1.104]
[1748126967597,1.67438779,669.71,669.49,1.104]
[1748126967799,1.67438779,669.7,669.49,1.104]
[1748126967998,1.67438779,669.69,669.49,1.104]
[1748126968298,1.67438779,669.68,669.49,1.104]
[1748126968498,2.6839471,669.67,669.49,1.104]
[1748126968699,1.67438779,669.66,669.49,1.104]
[1748126968899,1.67438779,669.65,669.49,1.104]
[1748126969099,1.67438779,669.64,669.49,1.104]
[1748126969298,2.13042083,669.63,669.49,1.104]
[1748126969496,1.12086152,669.62,669.49,1.104]
[1748126969697,2.13042083,669.61,669.49,1.104]
[1748126969897,1.00955931,669.61,669.49,1.104]
[1748126970300,1.00955931,669.6,669.49,1.104]
[1748126971100,1.00955931,669.59,669.49,1.104]
[1748126972002,1.00955931,669.59,669.46,0.47535609]
[1748126972202,1.00955931,669.58,669.46,0.47535609]
[1748126972503,1.00955931,669.57,669.46,0.47535609]
[1748126972904,1.00955931,669.56,669.46,0.47535609]
[1748126973402,1.00955931,669.55,669.46,0.47535609]
[1748126973902,1.00955931,669.54,669.46,0.47535609]
[1748126974299,1.46941097,669.99,669.46,0.47535609]
[1748126974502,1.67387079,669.98,669.46,0.47535609]
[1748126974698,1.67387079,669.97,669.46,0.47535609]
[1748126974998,2.68417398,669.96,669.46,0.47535609]
[1748126975202,1.67389681,669.95,669.46,0.47535609]
[1748126975404,1.67389681,669.94,669.47,1.115]
[1748126975604,1.67389681,669.93,669.47,1.115]
[1748126975805,1.67396027,669.92,669.47,1.115]
[1748126976005,1.67396027,669.91,669.47,1.115]
[1748126976306,2.68423744,669.9,669.47,1.115]
[1748126976507,1.67396027,669.89,669.47,1.115]
[1748126976708,1.67396027,669.88,669.47,1.115]
[1748126977006,1.67396027,669.87,669.47,1.115]
[1748126977202,1.67396027,669.86,669.47,1.115]
[1748126977407,2.68423744,669.85,669.47,1.115]
[1748126977707,1.67396027,669.84,669.47,1.115]
[1748126977907,2.68423744,669.83,669.48,0.47535609]
[1748126978109,1.67396027,669.82,669.48,0.47535609]
[1748126978303,2.68423744,669.81,669.48,0.47535609]
[1748126978608,1.67436434,669.8,669.48,0.47535609]
[1748126978808,1.67436434,669.79,669.48,0.47535609]
[1748126979007,1.67436434,669.78,669.48,0.47535609]
[1748126979207,1.67436434,669.77,669.48,0.47535609]
[1748126979408,2.68464151,669.76,669.48,0.47535609]
[1748126979610,1.67436434,669.75,669.48,0.47535609]
[1748126979810,2.68464151,669.74,669.58,0.47535609]
[1748126980109,1.67436434,669.73,669.58,0.47535609]
[1748126980309,2.68464151,669.72,669.58,0.47535609]
[1748126980508,1.67453163,669.71,669.58,0.47535609]
[1748126980708,2.6848088,669.7,669.58,0.47535609]
[1748126980907,1.67453163,669.69,669.58,0.47535609]
[1748126981114,2.6848088,669.68,669.58,0.47535609]
[1748126981408,1.67453163,669.67,669.58,0.47535609]
[1748126981609,2.68475258,669.66,669.58,0.47535609]
[1748126981910,1.67447541,669.65,669.58,0.47535609]
[1748126982110,1.67447541,669.64,669.58,0.47535609]
[1748126982311,1.67447541,669.63,669.58,0.47535609]
[1748126982511,1.67447541,669.62,669.58,0.47535609]
[1748126982712,1.01027717,669.63,669.47,1.115]
[1748126982713,2.68475258,669.61,669.47,1.115]
[1748126982908,1.67447541,669.6,669.47,1.115]
[1748126983106,1.67447541,669.59,669.47,1.115]
[1748126983409,2.68475258,669.58,669.47,1.115]
[1748126983607,1.1208642,669.57,669.47,1.115]
[1748126983810,2.13114137,669.56,669.47,1.115]
[1748126984009,1.1208642,669.55,669.47,1.115]
[1748126984206,2.13114137,669.54,669.47,1.115]
[1748126984410,1.1208642,669.53,669.47,1.115]
[1748126984607,1.1208642,669.52,669.47,1.115]
[1748126984912,1.1208642,669.51,669.47,1.115]
[1748126985111,1.1208642,669.5,669.47,1.115]
[1748126985312,1.1208642,669.49,669.47,1.115]
[1748126985511,1.1208642,669.48,669.47,1.115]
[1748126986112,2.19941652,669.48,669.47,1.115]
[1748126986513,1.19064042,669.48,669.47,1.115]
[1748126987915,1.19029697,669.48,669.47,1.115]
[1748126993216,1.46941097,669.98,669.47,1.115]
[1748126993423,1.74336939,669.97,669.47,1.115]
[1748126993623,1.74336598,669.96,669.47,1.115]
[1748126993823,2.75178622,669.95,669.47,1.115]
[1748126994122,2.75178622,669.94,669.47,1.115]
[1748126994323,1.74336598,669.93,669.47,1.115]
[1748126994523,2.75178622,669.92,669.47,1.115]
[1748126994822,2.75178622,669.91,669.47,1.115]
[1748126995018,1.74336598,669.9,669.47,1.115]
[1748126995223,2.75178622,669.89,669.47,1.115]
[1748126995419,1.74330071,669.88,669.36,0.67816837]
[1748126995624,1.74330071,669.87,669.36,0.67816837]
[1748126995818,2.75172095,669.86,669.36,0.67816837]
[1748126996022,2.75172095,669.85,669.36,0.67816837]
[1748126996220,1.74330071,669.84,669.36,0.67816837]
[1748126996423,1.74330071,669.83,669.36,0.67816837]
[1748126996625,2.75172095,669.82,669.36,0.67816837]
[1748126996825,1.74330071,669.81,669.36,0.67816837]
[1748126997023,1.74330071,669.8,669.36,0.67816837]
[1748126997224,2.75174259,669.79,669.36,0.67816837]
[1748126997420,1.74332235,669.78,669.36,0.67816837]
[1748126997625,1.74332235,669.77,669.36,0.67816837]
[1748126997825,2.75174259,669.76,669.36,0.67816837]
[1748126998026,1.74332235,669.75,669.36,0.67816837]
[1748126998226,1.74332235,669.74,669.36,0.67816837]
[1748126998426,1.74332235,669.73,669.36,0.67816837]
[1748126998624,2.75174259,669.72,669.37,0.767]
[1748126998827,1.74332235,669.71,669.37,0.767]
[1748126999022,1.74332235,669.7,669.37,0.767]
[1748126999228,2.75170415,669.69,669.37,0.767]
[1748126999427,1.74328391,669.68,669.37,0.767]
[1748126999622,1.00842024,669.69,669.37,0.767]
[1748126999623,1.74328391,669.67,669.4,0.67816837]
[1748126999821,1.74328391,669.66,669.4,0.67816837]
[1748127000026,1.74328391,669.65,669.4,0.67816837]
[1748127000222,1.74328391,669.64,669.4,0.67816837]
[1748127000428,1.74328391,669.63,669.55,0.47535609]
[1748127000624,1.74328391,669.62,669.55,0.47535609]
[1748127000828,1.7433045,669.61,669.55,0.47535609]
[1748127001028,2.75172474,669.6,669.55,0.47535609]
[1748127001229,1.19001713,669.59,669.55,0.47535609]
[1748127001429,2.19843737,669.58,669.55,0.47535609]
[1748127001625,1.19001713,669.57,669.55,0.47535609]
[1748127001828,1.19001713,669.56,669.55,0.47535609]
[1748127002030,2.19843737,669.56,669.55,0.47535609]
[1748127002229,2.19843737,669.56,669.41,0.67816837]
[1748127002529,1.19001713,669.55,669.41,0.67816837]
[1748127002725,2.19843737,669.54,669.41,0.67816837]
[1748127003028,2.22514116,670.01,669.37,0.767]
[1748127003029,2.19843737,669.53,669.38,0.67816837]
[1748127003228,1.19001713,669.52,669.38,0.67816837]
[1748127003425,1.19001713,669.51,669.38,0.67816837]
[1748127003630,1.19001713,669.5,669.38,0.67816837]
[1748127003826,1.19001713,669.49,669.38,0.67816837]
[1748127004126,1.46941097,669.94,669.38,0.67816837]
[1748127004331,1.74328998,669.93,669.38,0.67816837]
[1748127004630,2.75164502,669.92,669.38,0.67816837]
[1748127004824,1.74328998,669.91,669.38,0.67816837]
[1748127005029,1.74328998,669.9,669.39,0.67816837]
[1748127005230,1.74328998,669.89,669.47,0.47551949]
[1748127005433,1.74328998,669.88,669.47,0.47551949]
[1748127005731,2.75164502,669.87,669.47,0.47551949]
[1748127005930,1.74328998,669.86,669.47,0.47551949]
[1748127006129,1.74328998,669.85,669.47,0.47551949]
[1748127006326,1.74328998,669.84,669.47,0.47551949]
[1748127006530,2.75164502,669.83,669.47,0.47551949]
[1748127006733,1.74328998,669.82,669.47,0.47551949]
[1748127006931,1.74328998,669.81,669.47,0.47551949]
[1748127007134,2.75164502,669.8,669.47,0.47551949]
[1748127007331,1.74328998,669.79,669.48,0.47551949]
[1748127007527,1.74328998,669.78,669.48,0.47551949]
[1748127007727,2.75164502,669.77,669.48,0.47551949]
[1748127008025,1.74328998,669.76,669.48,0.47551949]
[1748127008230,2.75164502,669.75,669.48,0.47551949]
[1748127008429,1.74328998,669.74,669.48,0.47551949]
[1748127008626,1.74328998,669.73,669.48,0.47551949]
[1748127008832,1.74328998,669.72,669.48,0.47551949]
[1748127009029,2.75164502,669.71,669.48,0.47551949]
[1748127009234,1.74328998,669.7,669.48,0.47551949]
[1748127009429,1.74328998,669.69,669.48,0.47551949]
[1748127009634,2.75164502,669.68,669.48,0.47551949]
[1748127009834,1.74328998,669.67,669.47,0.47551949]
[1748127010037,1.74328998,669.66,669.47,0.47551949]
[1748127010232,1.74328998,669.65,669.47,0.47551949]
[1748127010537,1.74328998,669.64,669.47,0.47551949]
[1748127010737,1.74328998,669.63,669.47,0.47551949]
[1748127011038,2.75164502,669.62,669.47,0.47551949]
[1748127011239,1.74328998,669.61,669.47,0.47551949]
[1748127011434,1.66402359,669.6,669.47,0.47551949]
[1748127011634,1.11074083,669.59,669.49,0.47551949]
[1748127011839,2.11909587,669.58,669.49,0.47551949]
[1748127012039,1.00835504,669.58,669.49,0.47551949]
[1748127012640,1.00835504,669.57,669.49,0.47551949]
[1748127013139,1.00835504,669.56,669.49,0.47551949]
[1748127013538,1.00835504,669.55,669.49,0.47551949]
[1748127014237,1.00835504,669.55,669.41,0.67816837]
[1748127014436,1.00835504,669.54,669.41,0.67816837]
[1748127014841,1.00835504,669.53,669.41,0.67816837]
[1748127015542,1.00835504,669.52,669.41,0.67816837]
[1748127016143,1.00835504,669.51,669.41,0.67816837]
[1748127016642,1.00835504,669.5,669.41,0.67816837]
[1748127017242,1.46941097,669.9,669.41,0.67816837]
[1748127017541,1.66424191,669.89,669.41,0.67816837]
[1748127017743,1.66424191,669.88,669.41,0.67816837]
[1748127017938,1.66424191,669.87,669.41,0.67816837]
[1748127018238,2.67398786,669.86,669.41,0.67816837]
[1748127018542,1.66424191,669.85,669.41,0.67816837]
[1748127018743,1.66424191,669.84,669.41,0.67816837]
[1748127018942,1.6643242,669.83,669.41,0.67816837]
[1748127019139,1.6643242,669.82,669.41,0.67816837]
[1748127019340,1.00974595,669.84,669.41,0.67816837]
[1748127019341,2.67407015,669.81,669.41,0.67816837]
[1748127019543,1.6643242,669.8,669.41,0.67816837]
[1748127019744,1.6643242,669.79,669.6,0.47570125]
[1748127019938,1.6643242,669.78,669.6,0.47570125]
[1748127020142,1.6643242,669.77,669.6,0.47570125]
[1748127020341,1.6643242,669.76,669.6,0.47570125]
[1748127020543,1.6643242,669.75,669.6,0.47570125]
[1748127020750,2.67501926,669.74,669.6,0.47570125]
[1748127020944,1.6643242,669.73,669.6,0.47570125]
[1748127021139,2.67501926,669.72,669.6,0.47570125]
[1748127021442,1.6643242,669.71,669.6,0.47570125]
[1748127021643,1.6643242,669.7,669.6,0.47570125]
[1748127021939,2.67501926,669.69,669.6,0.47570125]
[1748127022145,1.6643242,669.68,669.6,0.47570125]
[1748127022345,1.6643242,669.67,669.6,0.47570125]
[1748127022541,1.66467011,669.66,669.6,0.47570125]
[1748127022743,2.67536517,669.65,669.6,0.47570125]
[1748127022943,2.67536517,669.64,669.6,0.47570125]
[1748127023144,1.66467011,669.63,669.6,0.47570125]
[1748127023345,1.66467011,669.62,669.6,0.47570125]
[1748127023541,1.46941097,669.89,669.6,0.47570125]
[1748127023542,2.67536517,669.61,669.6,0.47570125]
[1748127024343,2.6756692,669.61,669.6,0.47570125]
[1748127025553,2.6756692,669.61,669.52,0.47570125]
[1748127025846,2.67555972,669.6,669.52,0.47570125]
[1748127026044,1.11121929,669.59,669.52,0.47570125]
[1748127026249,1.11121929,669.58,669.52,0.47570125]
[1748127026448,1.01069506,669.58,669.52,0.47570125]
[1748127027246,1.01069506,669.57,669.52,0.47570125]
[1748127027850,1.01069506,669.56,669.52,0.47570125]
[1748127028353,1.01069506,669.55,669.52,0.47570125]
[1748127028653,1.01069506,669.54,669.52,0.47570125]
[1748127029250,1.01069506,669.53,669.52,0.47570125]
[1748127029753,1.01069506,669.53,669.39,0.67816837]
[1748127030551,1.01069506,669.52,669.39,0.67816837]
[1748127031054,1.01069506,669.51,669.39,0.67816837]
[1748127031547,1.01069506,669.5,669.39,0.67816837]
[1748127032553,1.01069506,669.49,669.39,0.67816837]
[1748127033457,1.01069506,669.48,669.39,0.67816837]
[1748127034056,1.46941097,669.97,669.39,0.67816837]
[1748127034250,1.6647666,669.96,669.39,0.67816837]
[1748127034453,1.6647666,669.95,669.39,0.67816837]
[1748127034654,1.6647666,669.94,669.39,0.67816837]
[1748127034852,1.6647666,669.93,669.39,0.67816837]
[1748127035050,2.6763901,669.92,669.39,0.67816837]
[1748127035249,1.6647666,669.91,669.39,0.67816837]
[1748127035554,1.66502848,669.9,669.4,0.67816837]
[1748127035853,1.66502848,669.89,669.4,0.67816837]
[1748127036047,1.66502591,669.88,669.4,0.67816837]
[1748127036246,1.66502591,669.87,669.4,0.67816837]
[1748127036453,1.66502591,669.86,669.4,0.67816837]
[1748127036650,2.67664941,669.85,669.4,0.67816837]
[1748127036952,2.67664941,669.84,669.4,0.67816837]
[1748127037150,1.66502591,669.83,669.4,0.67816837]
[1748127037456,2.67664941,669.82,669.4,0.67816837]
[1748127037649,2.67664941,669.81,669.4,0.67816837]
[1748127037854,1.66502591,669.8,669.4,0.67816837]
[1748127038150,2.67664941,669.79,669.4,0.67816837]
[1748127038351,2.67664941,669.78,669.4,0.67816837]
[1748127038552,1.66502591,669.77,669.4,0.67816837]
[1748127038749,1.66502591,669.76,669.4,0.67816837]
[1748127038954,2.67664941,669.75,669.4,0.67816837]
[1748127039153,2.67664941,669.74,669.4,0.67816837]
[1748127039354,1.66584439,669.73,669.4,0.67816837]
[1748127039652,2.67746789,669.72,669.4,0.67816837]
[1748127039957,2.67746789,669.71,669.4,0.67816837]
[1748127040157,2.67746789,669.7,669.44,0.67816837]
[1748127040458,1.46941097,669.88,669.6,0.47570125]
[1748127040459,2.67746789,669.69,669.6,0.47570125]
[1748127040654,1.66584439,669.68,669.6,0.47570125]
[1748127040852,1.66584439,669.67,669.6,0.47570125]
[1748127041157,2.67754088,669.66,669.6,0.47570125]
[1748127041356,1.66591738,669.65,669.6,0.47570125]
[1748127041556,1.66591738,669.64,669.6,0.47570125]
[1748127041758,2.67754088,669.63,669.6,0.47570125]
[1748127041961,2.67754088,669.62,669.6,0.47570125]
[1748127042257,1.66591738,669.61,669.6,0.47570125]
[1748127042558,2.67754088,669.61,669.6,0.47570125]
[1748127042958,2.6775525,669.61,669.6,0.47570125]
[1748127045061,2.6775525,669.61,669.47,0.47570125]
[1748127045261,2.6775525,669.6,669.47,0.47570125]
[1748127045563,2.6775525,669.59,669.47,0.47570125]
[1748127045860,1.665929,669.58,669.47,0.47570125]
[1748127046055,1.665929,669.57,669.47,0.47570125]
[1748127046255,2.123445,669.56,669.47,0.47570125]
[1748127046454,2.123445,669.55,669.47,0.47570125]
[1748127046757,1.0116235,669.55,669.47,0.47570125]
[1748127047458,1.0116235,669.54,669.47,0.47570125]
[1748127047761,1.0116235,669.53,669.47,0.47570125]
[1748127047959,1.46941097,669.91,669.47,0.47570125]
[1748127047960,1.0116235,669.52,669.47,0.47570125]
[1748127048560,1.0116235,669.51,669.47,0.47570125]
[1748127048861,1.0116235,669.5,669.47,0.47570125]
[1748127049061,1.0116235,669.49,669.47,0.47570125]
[1748127049561,1.0116235,669.48,669.47,0.47570125]
[1748127053559,1.0116235,669.48,669.44,0.67816837]
[1748127054365,1.0116235,669.47,669.44,0.67816837]
[1748127054868,1.46941097,669.87,669.44,0.67816837]
[1748127055069,2.67568645,669.86,669.44,0.67816837]
[1748127055266,1.66436429,669.85,669.44,0.67816837]
[1748127055469,1.66436429,669.84,669.44,0.67816837]
[1748127055671,1.66436429,669.83,669.44,0.67816837]
[1748127055873,1.66436429,669.82,669.44,0.67816837]
[1748127056070,1.01132216,669.86,669.44,0.67816837]
[1748127056071,2.67568645,669.81,669.44,0.67816837]
[1748127056270,2.67568645,669.8,669.44,0.67816837]
[1748127056474,1.66436429,669.79,669.44,0.67816837]
[1748127056674,2.67570479,669.78,669.44,0.67816837]
[1748127056969,1.66438263,669.77,669.44,0.67816837]
[1748127057176,1.66438263,669.76,669.44,0.67816837]
[1748127057481,2.67570479,669.75,669.44,0.67816837]
[1748127057774,2.67577622,669.74,669.44,0.67816837]
[1748127057971,1.66445406,669.73,669.44,0.67816837]
[1748127058175,1.66445406,669.72,669.44,0.67816837]
[1748127058476,1.66445406,669.71,669.59,0.47561242]
[1748127058676,1.66445406,669.7,669.59,0.47561242]
[1748127058877,1.66445406,669.69,669.59,0.47561242]
[1748127059077,1.66445406,669.68,669.59,0.47561242]
[1748127059277,1.66445406,669.67,669.59,0.47561242]
[1748127059477,2.67577622,669.66,669.59,0.47561242]
[1748127059777,1.66446663,669.65,669.59,0.47561242]
[1748127059979,1.66446663,669.64,669.59,0.47561242]
[1748127060173,2.67578879,669.63,669.59,0.47561242]
[1748127060378,1.66446663,669.62,669.59,0.47561242]
[1748127060576,1.66446663,669.61,669.59,0.47561242]
[1748127060775,2.67578879,669.6,669.59,0.47561242]
[1748127060975,2.67578879,669.6,669.44,0.67816837]
[1748127061275,2.6763732,669.59,669.33,1.111]
[1748127061480,1.66505104,669.58,669.33,1.111]
[1748127061676,2.6763732,669.57,669.33,1.111]
[1748127061876,1.66505104,669.56,669.33,1.111]
[1748127062080,1.66505104,669.55,669.33,1.111]
[1748127062280,2.6763732,669.54,669.33,1.111]
[1748127062482,1.66505104,669.53,669.33,1.111]
[1748127062679,1.73320757,669.52,669.33,1.111]
[1748127062884,1.73320757,669.51,669.33,1.111]
[1748127063182,2.74452973,669.5,669.33,1.111]
[1748127063383,2.74452973,669.49,669.33,1.111]
[1748127063580,1.17907817,669.48,669.33,1.111]
[1748127063779,2.19040033,669.47,669.33,1.111]
[1748127063979,1.17907817,669.46,669.33,1.111]
[1748127064180,2.19040033,669.45,669.33,1.111]
[1748127064381,1.17907817,669.44,669.33,1.111]
[1748127064580,1.17907817,669.43,669.33,1.111]
[1748127064778,1.17907817,669.42,669.33,1.111]
[1748127064977,2.19040033,669.41,669.33,1.111]
[1748127065180,1.01132216,669.41,669.33,1.111]
[1748127065383,1.17931594,669.4,669.33,1.111]
[1748127065583,2.1906381,669.39,669.33,1.111]
[1748127065782,1.17931594,669.38,669.33,1.111]
[1748127065979,1.17931594,669.37,669.33,1.111]
[1748127066181,1.17931594,669.36,669.33,1.111]
[1748127066384,1.17931594,669.35,669.33,1.111]
[1748127066580,2.19007608,669.34,669.33,1.111]
[1748127066786,1.01132216,669.34,669.33,1.111]
[1748127070489,2.18944018,669.34,669.33,1.111]
[1748127071892,2.18902207,669.34,669.33,1.111]
[1748127073791,2.18811223,669.34,669.33,1.111]
[1748127077490,2.18689693,669.34,669.33,1.111]
[1748127081606,1.17557477,669.34,669.33,1.111]
[1748127082202,1.46941097,669.77,669.33,1.111]
[1748127082503,2.73061349,669.76,669.33,1.111]
[1748127082699,1.72599055,669.75,669.33,1.111]
[1748127082903,1.72599055,669.74,669.33,1.111]
[1748127083203,2.73061349,669.73,669.33,1.111]
[1748127083404,1.72599055,669.72,669.33,1.111]
[1748127083602,1.72599055,669.71,669.33,1.111]
[1748127083800,1.72599055,669.7,669.33,1.111]
[1748127084006,2.73061349,669.69,669.33,1.111]
[1748127084206,2.73061349,669.68,669.33,1.111]
[1748127084505,1.72599055,669.67,669.33,1.111]
[1748127084705,1.72599055,669.66,669.33,1.111]
[1748127085000,1.7255797,669.65,669.33,1.111]
[1748127085204,2.73020264,669.64,669.33,1.111]
[1748127085404,1.7255797,669.63,669.33,1.111]
[1748127085700,1.7255797,669.62,669.33,1.111]
[1748127085904,1.7255797,669.61,669.33,1.111]
[1748127086102,1.7255797,669.6,669.33,1.111]
[1748127086302,1.7255797,669.59,669.33,1.111]
[1748127086502,2.73020264,669.58,669.33,1.111]
[1748127086704,1.72538683,669.57,669.33,1.111]
[1748127086904,1.72538683,669.56,669.33,1.111]
[1748127087102,1.72538683,669.55,669.33,1.111]
[1748127087404,1.72538683,669.54,669.33,1.111]
[1748127087604,2.73000977,669.53,669.33,1.111]
[1748127087802,1.72538683,669.52,669.33,1.111]
[1748127088003,1.72538683,669.51,669.33,1.111]
[1748127088202,2.73000977,669.5,669.33,1.111]
[1748127088502,1.17415193,669.49,669.33,1.111]
[1748127088707,1.72520525,669.48,669.33,1.111]
[1748127088907,1.72520525,669.47,669.33,1.111]
[1748127089206,2.72982819,669.46,669.33,1.111]
[1748127089407,1.17415193,669.45,669.33,1.111]
[1748127089602,1.17415193,669.44,669.33,1.111]
[1748127089802,1.17415193,669.43,669.33,1.111]
[1748127090109,2.17877487,669.42,669.33,1.111]
[1748127090307,2.17877487,669.41,669.33,1.111]
[1748127090608,1.17386358,669.4,669.33,1.111]
[1748127090806,1.17386358,669.39,669.33,1.111]
[1748127091006,2.17848652,669.38,669.33,1.111]
[1748127091207,1.17386358,669.37,669.33,1.111]
[1748127091406,1.17386358,669.36,669.33,1.111]
[1748127091608,1.00462294,669.38,669.33,1.111]
[1748127091806,1.17381884,669.37,669.33,1.111]